bitfinex/quotes_ETHUSD_20250106
["timestamp","ask_amount","ask_price","bid_price","bid_amount"]
[1736157672170,3.50822,3648.4,3647.4,5.38289879]
[1736157672334,3.50822,3648.4,3647.8,35.0]
[1736157672621,0.761,3648.2,3647.8,35.0]
[1736157672918,0.761,3648.2,3647.1,1.14665256]
[1736157672919,0.761,3647.4,3647.2,1.42162447]
[1736157673123,0.877,3647.4,3647.2,1.42162447]
[1736157673293,3.50275,3647.3,3647.2,1.42162447]
[1736157673782,3.50275,3647.3,3647.2,36.42162447]
[1736157674295,3.50275,3647.3,3647.2,35.0]
[1736157676017,0.761,3647.3,3647.2,35.0]
[1736157677640,1.311,3647.3,3647.2,35.0]
[1736157677975,4.19545,3647.3,3647.2,35.0]
[1736157679639,2.7423,3646.6,3645.8,1.43252681]
[1736157679839,0.7912,3646.5,3645.8,1.14665256]
[1736157680005,0.7912,3646.5,3646.2,35.0]
[1736157681119,0.55,3646.4,3646.2,35.0]
[1736157691950,0.55,3646.3,3645.2,3.02896857]
[1736157692150,0.7988,3646.0,3645.2,2.74332]
[1736157692354,0.55,3645.9,3645.1,1.14665256]
[1736157692532,0.55,3645.9,3645.3,35.0]
[1736157695059,0.55,3645.9,3645.3,37.74325]
[1736157700695,0.55,3645.9,3645.3,35.0]
[1736157701691,0.55,3645.9,3645.3,37.74324]
[1736157703967,0.5492,3645.9,3645.3,37.74324]
[1736157704163,0.5492,3645.9,3645.4,2.70749425]
[1736157704791,0.5492,3645.9,3645.5,35.0]
[1736157717134,1.3428,3645.6,3645.5,35.0]
[1736157718351,3.29331,3645.3,3644.9,0.01488282]
[1736157718531,0.55,3645.1,3644.9,0.01488282]
[1736157718696,0.55,3645.1,3645.0,35.0]
[1736157719330,0.8057,3645.6,3645.0,37.71757592]
[1736157719534,0.9217,3645.6,3645.0,37.71757592]
[1736157719731,0.55,3645.5,3645.0,37.71757592]
[1736157721440,0.55,3645.5,3645.0,35.0]
[1736157723356,0.8057,3645.6,3645.0,35.0]
[1736157723632,0.9217,3645.6,3645.0,35.0]
[1736157723934,0.55,3645.5,3645.0,35.0]
[1736157727742,0.55,3645.3,3644.9,0.01488282]
[1736157727942,0.55,3645.1,3644.9,0.01488282]
[1736157728145,0.55,3645.1,3645.0,35.0]
[1736157728446,4.10598,3645.0,3644.9,0.01488282]
[1736157728649,4.516578,3645.0,3644.9,0.01488282]
[1736157728867,1.773098,3645.0,3644.9,35.01488282]
[1736157729031,1.3625,3645.0,3644.9,35.01488282]
[1736157735747,0.116,3645.2,3644.9,35.01488282]
[1736157736887,3.53293,3645.4,3644.9,35.01488282]
[1736157737185,0.55,3645.3,3644.9,35.01488282]
[1736157737390,0.55,3645.4,3644.9,35.01488282]
[1736157746803,0.55,3645.4,3644.9,35.01488282]
[1736157747597,0.7509,3645.3,3644.9,35.01488282]
[1736157747888,3.29333,3645.2,3644.9,35.01488282]
[1736157749895,0.55,3645.2,3644.9,35.01488282]
[1736157753703,0.55,3645.2,3644.9,0.01488282]
[1736157754202,0.116,3645.5,3645.0,35.0]
[1736157754614,1.14782237,3645.7,3645.1,0.02743358]
[1736157754880,1.14782237,3645.7,3645.3,2.74319]
[1736157755340,1.14782237,3645.8,3645.4,35.0]
[1736157756694,1.83296039,3646.0,3645.4,35.0]
[1736157756695,0.116,3646.0,3645.4,35.0]
[1736157762662,1.3323,3645.9,3645.0,1.14665256]
[1736157762864,4.07513,3645.9,3645.0,1.14665256]
[1736157763216,2.74289,3645.8,3645.1,35.0]
[1736157763786,2.74311,3645.5,3645.1,35.0]
[1736157763995,0.55,3645.3,3645.1,35.9514525]
[1736157764128,3.29333,3645.2,3645.1,0.9514525]
[1736157764330,0.55,3645.2,3645.1,0.9514525]
[1736157764664,0.55,3645.2,3645.1,35.9514525]
[1736157765050,0.55,3645.2,3645.1,35.0]
[1736157765670,3.29333,3645.2,3645.1,35.0]
[1736157766378,3.29002876,3645.2,3645.1,35.0]
[1736157766885,4.10222876,3645.2,3645.1,35.0]
[1736157767086,4.10222876,3645.2,3644.9,0.01488282]
[1736157767087,2.74348,3645.0,3644.9,0.01488282]
[1736157768390,4.10568,3645.0,3644.9,0.01488282]
[1736157771774,5.25292432,3645.0,3644.9,0.01488282]
[1736157772804,5.25292432,3645.0,3644.9,35.01488282]
[1736157773102,6.25225424,3645.0,3644.9,35.01488282]
[1736157773399,5.10500992,3645.0,3644.9,35.01488282]
[1736157775111,5.10500992,3645.0,3644.9,0.01488282]
[1736157780415,10.59200992,3645.0,3644.9,0.01488282]
[1736157781936,11.73925424,3645.0,3644.9,0.01488282]
[1736157783420,10.59200992,3645.0,3644.9,0.01488282]
[1736157787057,11.78575661,3645.0,3644.9,0.01488282]
[1736157789552,11.90175661,3645.0,3644.9,0.01488282]
[1736157791260,13.04900093,3645.0,3644.9,0.01488282]
[1736157798802,11.90175661,3645.0,3644.9,0.01488282]
[1736157799158,14.90175661,3645.0,3644.9,0.01488282]
[1736157800151,14.90175661,3645.0,3644.9,2.82e-06]
[1736157801955,16.618717,3645.0,3644.9,2.82e-06]
[1736157803289,16.57096482,3645.0,3644.9,2.82e-06]
[1736157804707,18.86024535,3645.0,3644.9,2.82e-06]
[1736157806705,16.57096482,3645.0,3644.9,2.82e-06]
[1736157809360,20.62631217,3645.0,3644.9,2.82e-06]
[1736157809562,2.74463,3643.5,3643.1,1.42863514]
[1736157809803,3.93837669,3643.5,3643.1,1.14666256]
[1736157810012,3.93837669,3643.5,3643.1,36.14666256]
[1736157810221,2.7447,3643.4,3643.1,36.14666256]
[1736157810518,2.74483,3643.2,3643.1,36.14666256]
[1736157810721,2.74483,3643.2,3643.1,1.14666256]
[1736157810922,2.74483,3643.2,3643.1,1e-05]
[1736157817468,3.41315167,3643.2,3643.1,1e-05]
[1736157818368,2.74483,3643.2,3643.1,1e-05]
[1736157818669,8.23183,3643.2,3643.1,1e-05]
[1736157819732,5.487,3643.2,3643.1,1e-05]
[1736157821753,8.23183,3643.2,3643.1,1e-05]
[1736157828396,5.487,3643.2,3643.1,1e-05]
[1736157829302,8.23183,3643.2,3643.1,1e-05]
[1736157835405,8.34783,3643.2,3643.1,1e-05]
[1736157840976,9.17913,3643.2,3643.1,1e-05]
[1736157842312,10.63622762,3643.2,3643.1,1e-05]
[1736157845023,11.83098572,3643.2,3643.1,1e-05]
[1736157847820,13.02574382,3643.2,3643.1,1e-05]
[1736157848020,11.83098572,3643.2,3643.1,1e-05]
[1736157848210,16.02294382,3643.2,3643.1,1e-05]
[1736157849420,17.74396792,3643.2,3643.1,1e-05]
[1736157854550,17.71822693,3643.2,3643.1,1e-05]
[1736157857223,20.01292573,3643.2,3643.1,1e-05]
[1736157865803,17.62340953,3643.2,3643.1,1e-05]
[1736157865989,20.01292573,3643.2,3643.1,1e-05]
[1736157870318,20.01292573,3643.2,3641.9,2.3803766]
[1736157870319,2.74574,3642.0,3641.9,2.3803766]
[1736157870462,4.0564981,3642.0,3641.9,2.3803766]
[1736157871110,9.5434981,3642.0,3641.9,2.3803766]
[1736157872613,7.85588453,3642.0,3641.8,0.02745867]
[1736157872814,5.487,3642.0,3641.7,1.1947581]
[1736157873117,1.1947581,3642.8,3641.9,37.74581]
[1736157873263,1.1947581,3642.8,3642.0,2.71757592]
[1736157873469,1.1947581,3642.7,3642.0,2.71757592]
[1736157873766,1.1947581,3642.7,3641.9,2.74581]
[1736157874106,1.1947581,3642.7,3642.6,35.0]
[1736157876508,3.9399681,3642.7,3642.6,35.0]
[1736157876697,2.74521,3642.7,3641.7,1.15090034]
[1736157876917,1.1947581,3642.5,3641.7,1.15090034]
[1736157877099,0.55,3642.8,3641.8,0.56232509]
[1736157877282,2.74544,3642.5,3641.9,35.0]
[1736157878327,1.14594786,3642.8,3641.9,35.0]
[1736157878480,1.14594786,3642.8,3641.9,37.74574]
[1736157878684,1.14594786,3642.8,3642.0,2.71757592]
[1736157879005,1.14594786,3642.8,3642.0,5.46330592]
[1736157879192,1.14594786,3642.7,3642.0,5.46330592]
[1736157880136,1.14594786,3642.7,3642.0,2.71757592]
[1736157880639,2.74515,3642.8,3642.0,2.71757592]
[1736157880838,2.74515,3642.8,3641.8,1.15090034]
[1736157881134,0.94779837,3642.9,3642.1,35.0]
[1736157881135,3.59597978,3642.9,3642.1,35.0]
[1736157881328,2.74521,3642.7,3642.1,35.0]
[1736157881541,3.69300837,3642.7,3642.2,2.71757592]
[1736157882386,2.74532,3642.6,3642.2,2.71757592]
[1736157882999,3.69311837,3642.6,3642.2,2.71757592]
[1736157883645,0.94779837,3642.6,3642.2,2.71757592]
[1736157883855,1.14594786,3642.7,3642.1,35.0]
[1736157883856,1.14594786,3642.7,3642.3,0.87112747]
[1736157884815,0.9480245,3642.7,3641.8,2.74583]
[1736157885299,0.9480245,3642.7,3642.4,35.0]
[1736157886345,0.9480245,3642.7,3642.5,0.02745063]
[1736157886556,0.9480245,3642.7,3642.6,2.74529]
[1736157886762,1.14594786,3643.2,3643.0,2.74495]
[1736157886916,1.14594786,3643.2,3643.1,3.019405]
[1736157887318,1.14594786,3643.2,3643.1,38.019405]
[1736157888336,1.14594786,3643.9,3643.1,38.97141454]
[1736157889569,0.9483812,3643.9,3643.1,38.019405]
[1736157890767,1.14594786,3644.2,3643.1,38.019405]
[1736157890960,1.14594786,3644.2,3643.2,2.74501956]
[1736157891176,1.14594786,3644.2,3643.3,2.74476]
[1736157891477,1.14594786,3644.2,3643.9,2.74424]
[1736157891854,1.14594786,3644.2,3644.1,35.0]
[1736157892055,1.14594786,3644.3,3644.1,35.0]
[1736157892219,1.14594786,3644.3,3644.2,2.71757592]
[1736157893466,2.74356,3644.9,3644.2,2.71757592]
[1736157893775,4.64707786,3645.1,3644.2,2.71757592]
[1736157893978,4.64707786,3645.1,3644.3,0.02743732]
[1736157894377,2.74351,3645.0,3644.3,0.02743732]
[1736157894968,0.7577,3645.1,3644.4,0.59663247]
[1736157895304,2.64818141,3644.9,3644.4,0.59663247]
[1736157895576,2.64818141,3644.6,3644.1,35.0]
[1736157895777,0.8024,3644.5,3644.1,35.0]
[1736157896166,2.64818141,3644.3,3643.3,1.15090034]
[1736157896485,2.64818141,3644.3,3643.3,1.43862543]
[1736157896625,2.64818141,3644.3,3643.4,35.0]
[1736157897080,0.8024,3643.9,3643.4,35.0]
[1736157897628,2.64818141,3643.7,3643.4,35.0]
[1736157897965,5.39265141,3643.7,3643.4,35.0]
[1736157898326,2.74461,3643.5,3643.4,35.0]
[1736157898798,3.54701,3643.5,3643.4,35.0]
[1736157900180,2.74461,3643.5,3643.4,35.0]
[1736157900477,2.74447,3643.7,3643.4,35.0]
[1736157903386,2.74447,3643.7,3642.7,2.74518]
[1736157903525,2.74447,3643.7,3642.8,0.274518]
[1736157903732,3.39818141,3644.1,3643.5,35.0]
[1736157904071,2.74431,3643.9,3643.5,35.0]
[1736157905185,2.64818141,3643.6,3642.8,0.274518]
[1736157905452,2.64818141,3643.6,3641.7,8.17394888]
[1736157905453,2.74463,3643.5,3642.0,3.89664034]
[1736157905629,2.64818141,3643.3,3642.0,1.15090034]
[1736157905914,2.74493,3643.1,3642.0,3.89657034]
[1736157906261,2.64818141,3643.3,3642.0,1.15090034]
[1736157906460,2.74528,3642.7,3642.1,35.0]
[1736157907559,2.7453,3642.6,3642.1,35.0]
[1736157908410,2.64818141,3643.0,3642.1,35.0]
[1736157908565,2.74516,3642.8,3642.1,35.0]
[1736157910295,3.29904307,3643.3,3641.3,5.39441141]
[1736157910296,1.71892179,3643.7,3642.2,0.0274531]
[1736157910494,2.74482,3643.3,3642.2,3.01314345]
[1736157910810,2.74482,3643.3,3643.2,35.0]
[1736157910967,3.53802,3643.3,3643.2,35.0]
[1736157911599,6.18620141,3643.3,3643.2,35.0]
[1736157911798,7.19387534,3643.3,3643.2,35.0]
[1736157912367,7.74387534,3643.3,3643.2,35.0]
[1736157912561,2.74514,3642.8,3641.8,2.74581]
[1736157912767,7.19387534,3643.3,3641.6,2.74604]
[1736157912768,0.8152,3642.6,3641.6,2.74604]
[1736157913043,2.74537,3642.5,3642.3,35.0]
[1736157914840,0.8152,3642.6,3642.3,35.0]
[1736157916520,0.75699681,3642.6,3642.3,35.0]
[1736157918231,2.74483,3643.2,3642.2,2.74554]
[1736157918399,1.14594786,3643.3,3641.7,2.64818141]
[1736157918400,2.74501,3643.0,3641.7,2.64818141]
[1736157918600,2.74501,3643.0,3641.9,2.7458]
[1736157918928,2.74506,3642.9,3642.8,35.0]
[1736157919104,5.94324141,3642.9,3642.8,35.0]
[1736157919542,2.74529,3642.6,3641.5,2.7461]
[1736157919983,2.74529,3642.6,3642.0,35.0]
[1736157920190,2.74537,3642.5,3642.0,35.0]
[1736157921500,0.7657,3642.8,3642.0,35.0]
[1736157921501,3.0,3642.7,3642.0,35.0]
[1736157921704,2.74557,3642.3,3642.0,35.0]
[1736157922227,2.74563,3642.2,3642.0,35.0]
[1736157922428,2.74566,3642.1,3642.0,35.0]
[1736157924334,2.74634,3641.2,3641.1,0.28082948]
[1736157924533,6.21652141,3641.2,3641.1,0.28082948]
[1736157924840,3.47018141,3641.2,3640.4,1.15090034]
[1736157925002,2.64818141,3640.9,3640.4,1.15090034]
[1736157925330,2.7465,3641.0,3640.4,1.15090034]
[1736157925543,3.47018141,3641.2,3640.4,1.15090034]
[1736157925689,2.74667,3640.8,3640.4,1.15090034]
[1736157926232,2.74687,3640.5,3640.4,1.15090034]
[1736157926536,0.8245,3640.7,3640.4,1.15090034]
[1736157926718,0.8245,3640.7,3640.2,35.0]
[1736157926935,2.74671,3640.8,3640.2,35.0]
[1736157928244,3.57101,3641.0,3640.2,37.71757592]
[1736157928550,3.57084,3641.3,3640.2,37.71757592]
[1736157928903,3.57084,3641.3,3640.3,2.74702]
[1736157928904,0.8245,3641.3,3640.3,2.74702]
[1736157929653,2.64818141,3641.2,3640.9,35.0]
[1736157929853,2.64818141,3641.2,3639.3,5.39588141]
[1736157929854,0.34726814,3641.1,3639.7,2.74747]
[1736157930145,2.7466,3640.9,3639.8,2.74739]
[1736157930445,3.09370814,3641.1,3639.9,2.7473]
[1736157930610,2.74659,3640.9,3639.8,35.0]
[1736157930810,2.74659,3640.9,3639.9,2.71757592]
[1736157931151,2.74666,3640.8,3639.9,2.71757592]
[1736157931348,0.7769,3640.7,3639.9,2.71757592]
[1736157932733,2.64818141,3640.6,3639.8,35.0]
[1736157933024,5.39498141,3640.6,3639.8,35.0]
[1736157933867,0.7769,3640.7,3639.8,35.0]
[1736157934069,0.7769,3640.7,3639.9,2.74729]
[1736157934566,0.7769,3640.7,3640.0,2.74725]
[1736157934865,0.7769,3640.7,3640.1,2.71757592]
[1736157936262,0.7769,3640.7,3640.0,2.74725]
[1736157936558,2.64818141,3640.9,3640.2,35.0]
[1736157936744,0.8003,3641.3,3640.2,35.0]
[1736157936956,2.64818141,3641.5,3640.7,2.7467]
[1736157940859,2.64818141,3641.5,3640.2,35.0]
[1736157941189,2.64818141,3641.2,3640.2,35.0]
[1736157941350,2.64818141,3640.9,3639.8,2.74735]
[1736157941555,2.64818141,3640.6,3639.8,2.74735]
[1736157941755,2.64818141,3640.6,3639.5,0.281016]
[1736157941756,0.8007,3640.5,3639.6,2.74752]
[1736157941955,0.8007,3640.5,3639.5,0.281016]
[1736157942153,2.64818141,3640.3,3639.5,0.281016]
[1736157942381,2.64818141,3640.3,3639.4,2.9262964]
[1736157942593,2.64818141,3640.3,3639.4,38.33401607]
[1736157942793,5.39521141,3640.3,3639.4,35.58632607]
[1736157943207,2.64818141,3640.3,3639.4,35.58632607]
[1736157944298,2.64487718,3640.3,3639.4,35.58632607]
[1736157944791,2.64487718,3640.3,3639.4,38.33400607]
[1736157947111,2.64818141,3639.7,3639.4,0.1786064]
[1736157947606,2.74763,3639.5,3639.4,0.1786064]
[1736157947816,3.53663,3639.5,3639.4,0.1786064]
[1736157948806,0.789,3639.5,3639.4,0.1786064]
[1736157950070,0.7525,3639.8,3639.4,0.1786064]
[1736157950797,0.7525,3639.8,3639.5,35.0]
[1736157951133,2.64818141,3639.7,3639.4,0.1786064]
[1736157951703,3.26298255,3639.7,3639.4,35.1786064]
[1736157951998,6.01046255,3639.7,3639.4,0.1786064]
[1736157952391,6.01046255,3639.7,3639.4,35.1786064]
[1736157952593,2.64818141,3639.7,3639.4,35.1786064]
[1736157952923,0.7525,3639.8,3639.4,35.1786064]
[1736157953833,2.74684,3640.6,3639.5,0.02747672]
[1736157953834,0.764,3640.2,3639.5,0.02747672]
[1736157953992,0.764,3640.2,3639.4,37.9262364]
[1736157956627,2.64818141,3640.0,3639.4,35.1786064]
[1736157956824,3.08854814,3639.9,3639.4,35.1786064]
[1736157957031,3.08854814,3639.9,3639.4,0.1786064]
[1736157958528,2.64818141,3639.7,3639.4,0.1786064]
[1736157958684,0.764,3639.6,3639.4,0.1786064]
[1736157960230,3.51157,3639.6,3639.4,0.1786064]
[1736157960427,3.91906604,3639.6,3639.4,0.1786064]
[1736157960613,0.8096,3639.5,3639.4,0.1786064]
[1736157961427,3.55702,3639.8,3639.4,0.1786064]
[1736157961797,0.8096,3639.8,3639.4,0.1786064]
[1736157962013,2.74748,3639.7,3639.4,0.1786064]
[1736157962316,3.70212795,3639.7,3639.4,0.1786064]
[1736157963847,6.35030936,3639.7,3639.4,0.1786064]
[1736157964532,2.74756,3639.6,3639.4,0.1786064]
[1736157965234,3.60282936,3639.7,3639.4,0.1786064]
[1736157965434,3.56893,3639.5,3639.4,0.1786064]
[1736157965685,4.28610594,3639.5,3639.4,0.1786064]
[1736157966507,7.83610594,3639.5,3639.4,0.1786064]
[1736157967448,6.29823,3638.7,3638.1,0.01]
[1736157967662,9.73429141,3638.2,3638.1,0.01]
[1736157967800,9.73429141,3638.2,3637.5,0.28093837]
[1736157967801,2.74906,3637.6,3637.5,0.28093837]
[1736157968001,2.74921,3637.4,3636.8,2.87725085]
[1736157968201,3.29921,3637.4,3636.8,2.87725085]
[1736157968436,7.09291,3637.4,3636.8,2.87725085]
[1736157968754,7.09329,3636.9,3636.8,1.15090034]
[1736157968905,9.74147141,3636.9,3636.8,1.15090034]
[1736157969545,3.55524,3636.7,3636.6,8.5e-07]
[1736157969753,7.10524,3636.7,3636.6,8.5e-07]
[1736157970051,8.65554114,3636.7,3636.6,8.5e-07]
[1736157970545,0.8055,3636.7,3635.7,0.5378064]
[1736157970752,1.96194786,3637.1,3636.0,2.75026]
[1736157971057,3.49465026,3636.7,3636.1,0.02749914]
[1736157971206,3.49465026,3636.7,3635.7,0.5378064]
[1736157971406,3.49465026,3636.7,3636.6,2.74982]
[1736157971707,0.09465026,3636.7,3636.6,3.694921]
[1736157972146,3.43784359,3637.6,3636.6,3.694921]
[1736157972147,1.71892179,3637.8,3636.6,0.945101]
[1736157972309,1.71892179,3637.8,3636.9,2.74959]
[1736157972508,1.71892179,3637.8,3637.0,2.74948]
[1736157973285,0.55,3638.1,3637.0,2.74948]
[1736157973572,0.55,3638.1,3636.7,0.02749192]
[1736157973887,4.85748059,3638.4,3636.9,0.3592]
[1736157974032,1.71892179,3638.4,3637.7,2.74898]
[1736157974234,1.71892179,3638.5,3637.5,2.74913]
[1736157974888,1.71892179,3638.5,3637.3,2.74928]
[1736157975374,1.71892179,3638.5,3636.5,0.3592]
[1736157975375,3.29862,3638.2,3636.5,0.3592]
[1736157975681,3.29862,3638.2,3637.0,2.74951]
[1736157975883,3.1385588,3637.9,3636.7,2.7497]
[1736157976177,0.55,3637.8,3636.5,0.3592]
[1736157976394,0.55,3637.2,3636.1,0.3592]
[1736157976534,0.55,3637.2,3636.1,3.10937]
[1736157977563,0.55,3637.2,3636.1,0.3592]
[1736157977766,0.798,3637.3,3636.1,0.3592]
[1736157977988,1.1778,3637.3,3636.4,2.74995]
[1736157978587,1.1778,3637.3,3636.1,0.670144]
[1736157978588,1.1778,3637.3,3636.5,2.74985]
[1736157979139,0.798,3637.3,3636.7,2.74973]
[1736157979597,0.7728,3637.6,3636.8,0.02749679]
[1736157979888,0.7728,3637.6,3636.4,2.74997]
[1736157979889,1.3228,3638.0,3637.1,2.74943]
[1736157980043,0.17321768,3637.9,3636.9,0.38669361]
[1736157980242,0.7728,3638.0,3637.5,2.74909]
[1736157980472,1.71892179,3638.3,3637.7,2.74896]
[1736157981047,0.79514763,3638.4,3637.6,0.3592]
[1736157981189,0.7728,3638.6,3637.6,0.3592]
[1736157981893,3.7728,3638.6,3637.5,2.74914]
[1736157982640,0.55,3638.5,3637.6,2.74906]
[1736157985259,0.55,3638.5,3637.4,2.74919]
[1736157985407,0.55,3638.5,3637.5,2.7491]
[1736157985766,1.02096688,3638.4,3637.5,2.7491]
[1736157986253,4.02096688,3638.4,3637.3,2.74927]
[1736157986421,3.76943688,3638.4,3637.3,2.74927]
[1736157986624,3.76943688,3638.4,3637.2,0.3592]
[1736157986625,0.8138,3638.1,3636.9,0.3592]
[1736157986807,0.55,3638.0,3636.2,0.3592]
[1736157987007,0.55,3637.6,3636.4,2.7499]
[1736157987403,3.29906,3637.6,3636.4,2.7499]
[1736157987862,2.74915,3637.5,3636.4,2.7499]
[1736157988026,0.411295,3637.4,3636.4,2.7499]
[1736157988222,3.160505,3637.4,3636.2,0.3592]
[1736157989226,0.8138,3637.3,3636.2,0.3592]
[1736157989426,0.55,3637.2,3636.0,2.75022]
[1736157989604,2.74946,3637.1,3636.0,2.75022]
[1736157989809,2.74946,3637.1,3635.7,0.1786064]
[1736157989810,2.74968,3636.8,3635.7,0.1786064]
[1736157990038,0.55,3636.8,3635.7,0.1786064]
[1736157990614,0.55,3636.8,3635.8,2.75036]
[1736157990815,0.961339,3636.8,3635.9,2.75033]
[1736157991854,0.8138,3636.9,3636.4,2.74995]
[1736157992155,1.54559477,3637.4,3636.6,2.74981]
[1736157992156,0.7985,3637.3,3636.6,2.74981]
[1736157992819,1.54559477,3637.4,3636.2,0.02749719]
[1736157993157,1.54559477,3637.4,3637.0,2.74947]
[1736157993158,1.13429977,3637.4,3637.0,2.74947]
[1736157993454,1.13429977,3637.4,3637.1,2.74941]
[1736157993827,0.7645,3637.7,3637.1,2.74941]
[1736157994070,0.95437998,3637.7,3637.1,2.74941]
[1736157994248,0.95437998,3637.7,3637.2,2.74932]
[1736157994417,0.7645,3637.7,3637.2,2.74932]
[1736157994741,0.7645,3637.7,3637.0,2.74949]
[1736157995142,0.7645,3637.7,3636.8,2.74964]
[1736157995543,0.7645,3637.7,3636.9,2.74959]
[1736157995902,0.7645,3637.7,3637.1,2.74942]
[1736157996609,3.0,3637.2,3635.7,0.1786064]
[1736157996811,3.8532,3637.1,3635.9,2.75034]
[1736157997109,2.74961,3636.9,3635.7,2.9290864]
[1736157997410,1.3038,3637.0,3635.7,2.9290864]
[1736157997617,2.74974,3636.7,3635.7,2.9290864]
[1736157998103,0.7538,3636.6,3635.7,0.1786064]
[1736157998873,3.50367,3636.6,3635.7,0.1786064]
[1736157999074,0.7538,3636.6,3635.7,0.1786064]
[1736157999271,1.404149,3636.6,3635.7,0.1786064]
[1736157999678,5.8879288,3637.2,3635.7,0.1786064]
[1736157999679,2.29189573,3637.6,3635.9,0.3592]
[1736157999878,0.8308,3637.5,3636.2,3.1385588]
[1736158000082,1.13429977,3637.0,3636.9,2.74959]
[1736158001922,0.8308,3637.5,3636.9,2.74959]
[1736158002424,0.8308,3637.5,3636.7,3.10892]
[1736158002631,1.21388,3637.5,3636.7,2.74972]
[1736158003925,1.21388,3637.5,3636.8,2.74964]
[1736158004723,0.8308,3637.5,3636.8,2.74964]
[1736158004937,0.8308,3637.5,3636.4,2.74997]
[1736158004938,0.8308,3637.5,3636.3,0.3592]
[1736158005226,0.8308,3637.5,3637.0,2.74948]
[1736158005433,0.8092,3637.9,3636.4,0.02749357]
[1736158005636,0.8092,3637.9,3637.3,2.74922]
[1736158006923,0.8092,3637.9,3637.2,2.74934]
[1736158009459,0.8092,3637.9,3637.0,2.74949]
[1736158009603,0.76921898,3637.8,3636.8,2.74965]
[1736158009802,0.76921898,3637.8,3636.9,2.74959]
[1736158010640,0.76921898,3637.8,3636.5,0.71172524]
[1736158010971,2.74892,3637.8,3636.8,2.74965]
[1736158011836,0.8092,3637.9,3636.8,2.74961]
[1736158012031,2.36200061,3637.7,3636.8,2.74961]
[1736158013073,2.36200061,3637.7,3636.9,2.74957]
[1736158013244,1.41720037,3637.6,3636.9,2.74957]
[1736158013651,2.29452859,3637.6,3636.9,2.74957]
[1736158014146,2.01162799,3637.6,3636.9,2.74957]
[1736158014569,2.01162799,3637.6,3636.5,0.3592]
[1736158014799,0.8281,3637.5,3636.6,2.74974]
[1736158015104,0.65336382,3637.4,3636.6,2.74974]
[1736158016673,0.65336382,3637.4,3636.1,2.75013]
[1736158016674,4.28118011,3637.3,3636.1,2.75013]
[1736158016893,2.74938,3637.2,3635.9,0.3592]
[1736158017198,2.74938,3637.2,3636.1,2.75015]
[1736158017512,0.7985,3637.1,3636.1,2.75015]
[1736158017712,0.70453601,3637.0,3636.2,2.75005]
[1736158018716,0.70453601,3637.0,3636.3,2.75004]
[1736158019068,0.94480024,3636.9,3635.9,2.75029]
[1736158019263,0.8106,3636.8,3635.9,2.75029]
[1736158019518,0.52095662,3636.7,3635.9,2.75029]
[1736158020209,3.49788702,3636.6,3635.9,2.75029]
[1736158020513,0.8261,3636.5,3635.8,2.75041]
[1736158020883,0.8261,3636.5,3635.7,0.1786064]
[1736158021301,0.8261,3636.5,3635.9,2.75033]
[1736158021486,0.48449436,3636.4,3635.7,2.9290864]
[1736158022220,0.48449436,3636.4,3635.7,0.1786064]
[1736158022617,0.7985,3636.1,3635.7,0.1786064]
[1736158022779,2.75035,3635.9,3635.7,0.1786064]
[1736158023120,3.0,3636.3,3635.7,0.1359156]
[1736158023121,3.53772,3635.8,3635.7,0.1359156]
[1736158023322,7.81034788,3635.8,3635.7,0.1359156]
[1736158023491,4.50992788,3635.8,3635.7,0.1359156]
[1736158023695,7.26034788,3635.8,3635.7,0.1359156]
[1736158024019,7.81034788,3635.8,3635.7,0.1359156]
[1736158024374,7.81034788,3635.8,3635.4,0.5206539]
[1736158024375,2.75065,3635.5,3635.4,0.5206539]
[1736158024610,3.55765,3635.5,3635.4,0.5206539]
[1736158024915,4.10765,3635.5,3635.4,0.5206539]
[1736158025422,6.47111845,3635.5,3635.4,0.4706539]
[1736158025715,3.30074,3635.4,3635.1,8.23454599]
[1736158025880,0.807,3635.3,3635.1,8.23454599]
[1736158026615,4.12698,3635.2,3635.1,8.23454599]
[1736158027318,1.3761,3635.2,3635.1,8.23454599]
[1736158027514,1.77724767,3635.2,3635.1,8.23454599]
[1736158028129,4.52812767,3635.2,3635.1,8.23454599]
[1736158028421,1.22724767,3635.2,3635.1,8.23454599]
[1736158028597,0.8261,3635.2,3635.1,8.23454599]
[1736158030003,7.03106271,3635.6,3635.1,8.23454599]
[1736158030004,1.91981391,3635.6,3635.1,8.23454599]
[1736158030356,1.91981391,3635.6,3635.1,10.98542599]
[1736158030833,1.91981391,3635.6,3635.2,35.0]
[1736158030834,0.7779,3635.6,3635.2,35.0]
[1736158033108,0.7779,3635.6,3635.2,37.75081]
[1736158034011,0.7779,3635.6,3635.2,35.0]
[1736158034207,1.68981912,3636.2,3635.2,35.0]
[1736158034208,0.7842,3636.1,3635.5,2.75063]
[1736158034409,0.7842,3636.1,3635.6,2.75057]
[1736158034757,1.14191391,3636.2,3635.2,3.07677592]
[1736158034758,1.14191391,3636.2,3635.7,2.75046]
[1736158034909,1.14191391,3636.2,3635.7,37.75046]
[1736158035366,1.96431391,3636.4,3635.7,37.71757592]
[1736158035509,1.14191391,3636.4,3636.1,2.75015]
[1736158036561,0.7521,3636.7,3636.1,2.75015]
[1736158036860,0.7521,3636.7,3636.2,2.75012]
[1736158037215,0.7971,3637.0,3636.4,2.74997]
[1736158037403,0.99100139,3637.0,3636.5,2.74986]
[1736158037608,1.14191391,3637.2,3636.7,2.74973]
[1736158037861,1.14191391,3637.3,3636.7,2.74973]
[1736158038206,1.14191391,3637.3,3636.2,2.75012]
[1736158038414,1.14191391,3637.3,3636.0,2.75027]
[1736158038631,1.14191391,3637.3,3636.8,2.74966]
[1736158039063,1.14191391,3637.3,3636.3,2.74999]
[1736158039247,0.7944,3637.4,3636.6,2.7498]
[1736158039412,0.7944,3637.4,3636.3,2.74999]
[1736158039609,0.7944,3637.4,3636.7,2.74973]
[1736158039824,1.2278094,3637.4,3636.7,2.74973]